bitfinex/quotes_SOLUSD_20251212
["timestamp","ask_amount","ask_price","bid_price","bid_amount"]
[1765579707865,8.26,132.64,132.61,0.68]
[1765579708461,7.53977229,132.63,132.58,62.68432314]
[1765579708667,8.19977229,132.63,132.58,65.71045191]
[1765579708866,0.66,132.62,132.58,65.71045191]
[1765579709080,0.66,132.62,132.59,3.97045191]
[1765579710257,8.20043824,132.62,132.59,3.97045191]
[1765579710876,7.54043824,132.62,132.6,0.66]
[1765579712157,7.53996308,132.63,132.6,3.97045191]
[1765579712681,7.53996308,132.63,132.61,0.66]
[1765579713362,7.53996308,132.63,132.61,1.16]
[1765579713679,8.19996308,132.63,132.61,1.16]
[1765579713877,7.53996308,132.63,132.61,0.5]
[1765579714081,7.53996308,132.63,132.62,0.66]
[1765579716177,28.84647982,132.64,132.62,0.66]
[1765579720985,15.79938862,132.64,132.62,0.66]
[1765579726592,15.79880532,132.65,132.62,5.83592249]
[1765579726971,8.26,132.65,132.63,0.66]
[1765579727164,7.53824114,132.66,132.63,0.66]
[1765579727165,0.66,132.7,132.64,5.17592249]
[1765579727488,8.26,132.69,132.66,5.17592249]
[1765579727792,13.0470912,132.69,132.66,5.17592249]
[1765579728097,13.0470912,132.69,132.67,0.66]
[1765579728390,20.58358621,132.69,132.67,0.66]
[1765579729100,13.0470912,132.69,132.67,0.66]
[1765579731597,16.45603116,132.7,132.67,0.66]
[1765579733084,15.79603116,132.7,132.67,0.66]
[1765579733487,15.79603116,132.7,132.67,8.19745057]
[1765579733488,8.26,132.7,132.67,8.19745057]
[1765579733678,16.48483585,132.72,132.67,13.36906987]
[1765579733878,5.1716193,132.71,132.67,7.53745057]
[1765579734083,13.0470912,132.68,132.64,0.7]
[1765579734278,13.0470912,132.68,132.62,5.8716193]
[1765579734279,7.53806723,132.66,132.62,5.8716193]
[1765579734480,7.53806723,132.66,132.63,0.7]
[1765579734698,7.53806723,132.66,132.61,7.54066738]
[1765579734699,8.95,132.65,132.61,12.71228668]
[1765579735001,8.95,132.65,132.62,0.7]
[1765579736087,0.69,132.64,132.62,0.7]
[1765579736284,0.69,132.64,132.61,0.7]
[1765579736480,8.22935958,132.64,132.61,0.7]
[1765579738275,7.53935958,132.64,132.61,5.8716193]
[1765579738480,16.48888541,132.65,132.62,0.7]
[1765579739292,8.95,132.65,132.62,5.8716193]
[1765579739694,8.95,132.65,132.63,1.5]
[1765579740208,8.26,132.65,132.63,7.3716193]
[1765579740416,13.0470912,132.67,132.64,13.41054121]
[1765579740582,13.0470912,132.67,132.65,5.1716193]
[1765579740788,8.95,132.69,132.65,5.8716193]
[1765579741005,8.95,132.69,132.66,0.7]
[1765579741597,16.48662131,132.69,132.66,0.7]
[1765579742389,15.79662131,132.69,132.65,12.71014451]
[1765579742708,0.69,132.68,132.65,13.41014451]
[1765579743118,0.69,132.68,132.66,0.7]
[1765579743286,0.69,132.68,132.65,13.41014451]
[1765579744921,0.69,132.68,132.66,1.5]
[1765579745713,8.22711438,132.68,132.65,0.7]
[1765579747001,0.69,132.68,132.65,13.40991986]
[1765579747388,0.69,132.68,132.66,0.7]
[1765579750520,15.79643285,132.69,132.66,0.7]
[1765579750695,16.48643285,132.69,132.66,0.7]
[1765579750899,16.48643285,132.69,132.66,8.23804154]
[1765579751617,15.79643285,132.69,132.66,0.7]
[1765579751823,0.69,132.68,132.66,0.7]
[1765579758538,8.22720155,132.68,132.64,70.43902018]
[1765579758747,8.22720155,132.68,132.64,62.2]
[1765579758748,8.26,132.67,132.64,62.2]
[1765579758915,8.95,132.67,132.63,0.7]
[1765579759116,0.69,132.66,132.63,0.7]
[1765579759325,7.5386355,132.65,132.64,1.5]
[1765579759550,15.7986355,132.65,132.64,1.5]
[1765579759838,16.4886355,132.65,132.64,1.5]
[1765579760143,16.4886355,132.65,132.61,0.7]
[1765579760440,0.69,132.64,132.61,0.7]
[1765579761213,8.22952119,132.64,132.61,0.7]
[1765579768646,0.66,132.63,132.6,13.39749455]
[1765579769545,0.66,132.63,132.61,0.68]
[1765579772875,8.20010243,132.63,132.6,5.85623433]
[1765579773051,8.20010243,132.63,132.6,0.68]
[1765579774251,8.20010243,132.63,132.6,5.85623433]
[1765579776078,8.20010243,132.63,132.6,0.68]
[1765579776297,8.20010243,132.63,132.6,5.85623433]
[1765579778085,8.20010243,132.63,132.6,5.17623433]
[1765579778376,8.20010243,132.63,132.61,0.68]
[1765579782077,8.19920386,132.64,132.61,0.68]
[1765579782552,0.66,132.63,132.61,0.68]
[1765579783281,8.200055,132.63,132.6,5.85623433]
[1765579783863,8.200055,132.63,132.6,5.17623433]
[1765579784067,7.540055,132.63,132.61,0.68]
[1765579784271,8.200055,132.63,132.61,0.68]
[1765579784757,8.200055,132.63,132.6,5.85623433]
[1765579785882,8.200055,132.63,132.6,3.99305539]
[1765579787862,8.200055,132.63,132.6,3.31305539]
[1765579788070,8.200055,132.63,132.6,3.99305539]
[1765579792393,7.53945269,132.64,132.6,10.85437579]
[1765579792569,8.23945269,132.64,132.61,0.72]
[1765579792765,0.7,132.63,132.61,0.72]
[1765579793491,16.49888712,132.65,132.61,0.72]
[1765579793670,0.7,132.64,132.61,0.72]
[1765579794665,7.53977229,132.63,132.61,0.72]
[1765579795486,8.23977229,132.63,132.61,0.72]
[1765579800767,8.23920386,132.64,132.61,0.72]
[1765579801394,0.7,132.63,132.61,0.72]
[1765579801569,0.7,132.63,132.6,4.03285283]
[1765579801895,0.7,132.63,132.6,0.72]
[1765579802183,0.7,132.63,132.6,4.03285283]
[1765579802367,0.7,132.63,132.61,0.72]
[1765579803688,8.23996769,132.63,132.59,73.05465654]
[1765579803895,8.23996769,132.63,132.6,0.72]
[1765579807879,8.23996769,132.63,132.6,4.03285283]
[1765579808392,8.23996769,132.63,132.61,0.72]
[1765579819108,0.7,132.62,132.6,0.72]
[1765579821007,8.24045991,132.62,132.6,0.72]
[1765579821508,8.24045991,132.62,132.6,4.03285283]
[1765579822297,7.54045991,132.62,132.61,0.68]
[1765579822499,7.54045991,132.62,132.6,3.99285283]
[1765579823004,8.24045991,132.62,132.6,3.99285283]
[1765579823684,0.7,132.63,132.6,3.99285283]
[1765579824499,0.7,132.63,132.6,0.68]
[1765579825310,0.7,132.63,132.6,3.99285283]
[1765579825805,8.2402312,132.63,132.6,3.99285283]
[1765579825983,8.2402312,132.63,132.58,78.2023772]
[1765579826178,0.72,132.62,132.58,82.23523003]
[1765579826379,8.98,132.62,132.58,65.71285283]
[1765579826609,8.98,132.62,132.58,62.4]
[1765579826805,0.72,132.61,132.58,62.4]
[1765579826975,0.72,132.61,132.58,0.2]
[1765579827798,8.26116082,132.61,132.58,4.23477807]
[1765579828200,0.72,132.6,132.58,4.23477807]
[1765579828389,0.72,132.6,132.58,3.51477807]
[1765579828580,0.72,132.6,132.58,4.23477807]
[1765579829212,8.26169552,132.6,132.58,0.2]
[1765579829808,0.72,132.59,132.58,0.2]
[1765579830807,8.26101059,132.61,132.58,11.7772663]
[1765579831011,0.72,132.6,132.58,11.7772663]
[1765579831383,0.72,132.6,132.58,8.46248823]
[1765579831615,0.72,132.6,132.58,4.23477807]
[1765579832599,8.2615966,132.6,132.58,0.2]
[1765579833109,0.72,132.59,132.58,0.2]
[1765579833815,8.26204691,132.59,132.58,0.2]
[1765579834696,16.52204691,132.59,132.58,0.2]
[1765579834889,28.6467699,132.59,132.58,0.2]
[1765579835611,31.95258339,132.59,132.58,0.2]
[1765579836303,20.37780532,132.59,132.58,0.2]
[1765579836507,28.35348218,132.59,132.58,0.2]
[1765579836707,29.56913811,132.59,132.58,0.2]
[1765579837017,7.54167856,132.6,132.58,0.2]
[1765579837193,7.54167856,132.6,132.58,0.92]
[1765579837703,16.52109466,132.61,132.58,0.92]
[1765579838407,8.98,132.61,132.58,8.46223522]
[1765579839516,8.98,132.61,132.59,1.5]
[1765579842420,16.52098154,132.61,132.59,1.5]
[1765579844298,0.72,132.6,132.59,1.5]
[1765579860516,15.80098154,132.61,132.59,1.5]
[1765579860750,15.80098154,132.61,132.59,2.19]
[1765579861743,15.80098154,132.61,132.59,1.5]
[1765579862048,16.52098154,132.61,132.59,2.19]
[1765579862421,16.52098154,132.61,132.59,1.5]
[1765579875268,16.52098154,132.61,132.59,2.19]
[1765579886277,16.52098154,132.61,132.59,1.5]
[1765579888669,16.47098154,132.61,132.59,1.5]
[1765579890468,16.47098154,132.61,132.59,2.18]
[1765579896078,0.67,132.6,132.59,1.5]
[1765579896985,0.67,132.6,132.58,8.42256674]
[1765579898794,16.47098154,132.61,132.58,8.42256674]
[1765579900597,0.67,132.6,132.58,8.42256674]
[1765579901075,8.2117113,132.6,132.58,0.2]
[1765579901271,0.67,132.6,132.58,0.2]
[1765579901501,0.67,132.6,132.58,0.88]
[1765579902491,0.67,132.6,132.59,1.5]
[1765579906680,13.39139343,132.6,132.59,1.5]
[1765579908796,12.72139343,132.6,132.59,1.5]
[1765579909993,13.39139343,132.6,132.59,1.5]
[1765579915204,13.39139343,132.6,132.58,0.88]
[1765579916916,13.39139343,132.6,132.59,1.5]
[1765579926715,13.39139343,132.6,132.58,0.88]
[1765579937453,13.39139343,132.6,132.58,19.73142383]
[1765579937764,13.39139343,132.6,132.58,0.88]
[1765579937939,13.39139343,132.6,132.58,19.73142383]
[1765579939349,13.39139343,132.6,132.58,19.05142383]
[1765579939655,8.2115396,132.6,132.58,0.2]
[1765579939841,18.85142383,132.59,132.58,0.2]
[1765579940037,18.85142383,132.59,132.58,0.87]
[1765579959096,18.85142383,132.59,132.58,0.2]
[1765579962790,18.85142383,132.59,132.58,0.89]
[1765579963095,18.85142383,132.59,132.58,0.2]
[1765579967412,0.67,132.6,132.58,0.2]
[1765579967712,19.52142383,132.6,132.58,0.2]
[1765579981306,19.52142383,132.6,132.58,0.87]
[1765579983427,19.52142383,132.6,132.58,0.2]
[1765579985431,19.52142383,132.6,132.58,0.87]
[1765579991542,19.52142383,132.6,132.58,0.2]
[1765579992042,19.52142383,132.6,132.58,0.87]
[1765579993731,19.52142383,132.6,132.58,0.2]
[1765579995343,18.85142383,132.6,132.58,0.87]
[1765579997131,19.56142383,132.6,132.58,0.87]
[1765580000548,18.85142383,132.6,132.58,0.87]
[1765580001855,19.52142383,132.6,132.58,0.87]
[1765580007556,26.39321267,132.6,132.58,0.2]
[1765580007861,0.69,132.59,132.58,0.2]
[1765580008043,23.34433264,132.59,132.58,0.2]
[1765580009874,22.65433264,132.59,132.58,0.2]
[1765580011046,23.34433264,132.59,132.58,0.2]
[1765580013054,30.88637955,132.59,132.58,0.2]
[1765580013250,23.34433264,132.59,132.58,0.2]
[1765580014347,30.88637955,132.59,132.58,0.2]
[1765580018677,30.19637955,132.59,132.58,0.2]
[1765580019782,30.19637955,132.59,132.58,5.37870166]
[1765580020163,30.19637955,132.59,132.58,6.08870166]
[1765580021488,22.65433264,132.59,132.58,6.08870166]
[1765580023184,22.65433264,132.59,132.58,5.37870166]
[1765580026383,30.88637955,132.59,132.58,5.37870166]
[1765580026769,23.34433264,132.59,132.58,5.37870166]
[1765580026962,22.65433264,132.59,132.58,0.2]
[1765580027364,8.23168714,132.6,132.58,0.2]
[1765580027691,30.88601978,132.6,132.58,5.37870166]
[1765580028891,30.88601978,132.6,132.58,0.2]
[1765580033200,8.23168714,132.6,132.58,0.2]
[1765580033700,7.7435947,132.59,132.58,0.2]
[1765580035011,7.7435947,132.59,132.58,3.51434116]
[1765580038594,8.23168714,132.6,132.58,3.51434116]
[1765580038794,30.88601978,132.6,132.58,3.51434116]
[1765580040899,0.71,132.59,132.58,0.2]
[1765580047817,0.71,132.59,132.58,3.51434116]
[1765580048016,0.71,132.59,132.58,3.51434006]
[1765580049822,0.71,132.59,132.58,0.2]
[1765580055321,0.71,132.59,132.58,3.51434006]
[1765580055644,0.71,132.59,132.58,0.2]
[1765580064552,0.71,132.59,132.58,3.51434006]
[1765580064850,0.71,132.59,132.58,0.2]
[1765580065357,30.91601978,132.6,132.58,3.51434006]
[1765580065656,30.19601978,132.6,132.58,3.51434006]
[1765580065952,0.72,132.59,132.58,3.51434006]
[1765580074749,30.19601978,132.6,132.58,0.2]
[1765580074951,0.72,132.59,132.58,0.2]
[1765580077198,8.26204691,132.59,132.58,0.2]
[1765580077690,30.9180904,132.59,132.58,0.2]
[1765580077884,39.1780904,132.59,132.58,0.2]
[1765580079684,61.03512652,132.59,132.58,0.2]
[1765580079894,47.98803532,132.59,132.58,0.2]
[1765580083113,51.30457641,132.59,132.58,0.2]
[1765580083809,51.58889955,132.59,132.58,0.2]
[1765580084009,13.0470912,132.57,132.56,0.2]
[1765580084192,8.26,132.57,132.56,0.2]
[1765580084397,8.98,132.57,132.56,0.2]
[1765580084596,12.00194688,132.57,132.56,0.2]
[1765580085322,22.14135926,132.56,132.55,0.2]
[1765580085533,22.86135926,132.56,132.55,0.2]
[1765580085826,22.57703612,132.56,132.55,0.2]
[1765580086012,25.598983,132.56,132.55,0.2]
[1765580086215,16.78903808,132.56,132.55,0.2]
[1765580087327,24.33279185,132.56,132.55,0.2]
[1765580087534,3.02194688,132.56,132.55,4.21654109]
[1765580087718,0.72,132.62,132.55,11.76086398]
[1765580087901,0.72,132.62,132.6,3.31654109]
[1765580088110,17.26363229,132.61,132.6,3.31654109]
[1765580088310,4.21654109,132.61,132.6,3.31654109]
[1765580088816,11.75745052,132.61,132.6,3.31654109]
[1765580089027,8.26,132.63,132.6,4.01654109]
[1765580089230,19.5672466,132.65,132.62,3.31654109]
[1765580089441,13.0470912,132.63,132.62,3.31654109]
[1765580089616,13.0470912,132.63,132.62,4.01654109]
[1765580090217,27.1072466,132.65,132.62,4.01654109]
[1765580090218,15.7987353,132.65,132.62,4.01654109]
[1765580090426,16.5187353,132.65,132.62,0.7]
[1765580090627,13.0470912,132.63,132.62,0.7]
[1765580091139,16.4887353,132.65,132.62,0.7]
[1765580091532,13.0470912,132.63,132.62,0.7]
[1765580096238,16.4887353,132.65,132.62,0.7]
[1765580097634,15.7987353,132.65,132.62,0.7]
[1765580098124,13.0470912,132.66,132.63,5.17585086]
[1765580098439,8.95,132.67,132.63,6.67585086]
[1765580098629,8.26,132.67,132.64,5.88585086]
[1765580099257,8.26,132.67,132.65,0.71]
[1765580100447,8.22708582,132.68,132.65,0.71]
[1765580100625,7.53708582,132.68,132.65,0.71]
[1765580101039,8.22708582,132.68,132.65,0.71]
[1765580102742,0.69,132.67,132.65,0.71]
[1765580103045,8.22708582,132.68,132.65,0.71]
[1765580103451,8.22708582,132.68,132.66,1.5]
[1765580104932,8.22708582,132.68,132.66,2.21]
[1765580109360,8.22708582,132.68,132.66,1.5]
[1765580112657,0.69,132.67,132.66,1.5]
[1765580112841,0.69,132.67,132.64,75.62211414]
[1765580113159,0.69,132.67,132.65,0.71]
[1765580116954,30.11703612,132.71,132.66,5.17299062]
[1765580117155,7.53614052,132.7,132.67,5.88299062]
[1765580117455,8.95,132.72,132.69,5.17299062]
[1765580117632,8.26,132.72,132.69,5.17299062]
[1765580117955,7.53377175,132.74,132.71,5.17299062]
[1765580118356,0.69,132.74,132.71,5.17299062]
[1765580118655,0.69,132.74,132.72,5.88299062]
[1765580118846,16.48308663,132.75,132.72,5.88299062]
[1765580119040,8.95,132.75,132.72,13.41748996]
[1765580119962,8.95,132.75,132.73,0.71]
[1765580120167,8.95,132.75,132.72,13.41748996]
[1765580121066,0.69,132.74,132.71,5.17299062]
[1765580121254,0.69,132.74,132.7,5.86299062]
[1765580121862,0.69,132.74,132.7,13.39872762]
[1765580122067,0.69,132.74,132.7,5.86299062]
[1765580122244,9.49994492,132.74,132.69,5.86299062]
[1765580122573,8.80994492,132.73,132.69,5.86299062]
[1765580122871,9.49994492,132.73,132.69,0.69]
[1765580123064,8.22503225,132.72,132.69,0.69]
[1765580124644,0.69,132.71,132.69,5.17299062]
[1765580124964,8.22503225,132.72,132.69,5.86299062]
[1765580127876,13.0470912,132.69,132.67,70.42731516]
[1765580128077,13.0470912,132.69,132.68,5.86299062]
[1765580128456,13.0470912,132.69,132.68,7.36299062]
[1765580129079,13.0470912,132.69,132.68,6.67299062]
[1765580129574,13.0470912,132.69,132.68,1.5]
[1765580129774,13.0470912,132.69,132.68,2.19]
[1765580130181,13.0470912,132.69,132.68,7.36299062]
[1765580132786,13.0470912,132.69,132.68,6.67299062]
[1765580133152,13.0470912,132.69,132.68,2.19]
[1765580133973,13.0470912,132.69,132.68,1.5]
[1765580137168,20.58345415,132.69,132.68,1.5]
[1765580138183,20.58345415,132.69,132.68,6.67299062]
[1765580139656,20.58345415,132.69,132.68,7.36299062]
[1765580140361,20.58345415,132.69,132.68,6.67299062]
[1765580144487,21.30345415,132.69,132.68,1.5]
[1765580144667,21.30345415,132.69,132.68,5.17095551]
[1765580150998,40.14436152,132.69,132.67,67.37095551]
[1765580151201,0.69,132.68,132.67,67.37095551]
[1765580151405,0.69,132.68,132.67,5.17095551]
[1765580151588,0.69,132.68,132.66,5.17095551]
[1765580151815,0.69,132.68,132.67,5.17095551]
[1765580153111,8.22693096,132.68,132.67,5.17095551]
[1765580153899,8.22693096,132.68,132.67,3.30983692]
[1765580156315,8.22693096,132.68,132.66,3.30983692]
[1765580156614,8.22693096,132.68,132.66,4.00983692]
[1765580164493,7.53693096,132.68,132.66,4.00983692]
[1765580165104,20.5837017,132.69,132.66,4.00983692]
[1765580165394,21.2737017,132.69,132.66,4.00983692]
[1765580166105,21.2737017,132.69,132.67,3.30983692]
[1765580166916,21.2737017,132.69,132.66,4.00983692]
[1765580167617,21.2737017,132.69,132.66,0.7]
[1765580167924,21.2737017,132.69,132.66,4.00983692]
[1765580172705,0.69,132.68,132.66,4.00983692]
[1765580174014,13.0470912,132.69,132.67,4.00983692]
[1765580174208,13.0470912,132.69,132.68,3.30983692]
[1765580174413,13.0470912,132.69,132.68,4.00983692]
[1765580175416,13.0470912,132.69,132.68,4.00906371]
[1765580177522,13.0470912,132.69,132.68,0.7]
[1765580179626,20.58345415,132.69,132.68,0.7]
[1765580183033,21.27345415,132.69,132.66,62.2]
[1765580183202,0.69,132.68,132.66,62.2]
[1765580183402,0.69,132.68,132.66,62.89]
[1765580183829,20.58345415,132.69,132.66,62.89]
[1765580184031,21.28345415,132.69,132.66,62.89]
[1765580188341,21.28345415,132.69,132.66,66.19906371]
[1765580193642,21.28345415,132.69,132.67,0.67]
[1765580193841,21.28345415,132.69,132.66,65.50906371]
[1765580194048,21.28345415,132.69,132.66,66.17906371]
[1765580195047,21.28345415,132.69,132.67,0.67]
[1765580196648,21.28345415,132.69,132.66,65.50906371]
[1765580196829,21.28345415,132.69,132.66,66.17906371]
[1765580199450,21.28345415,132.69,132.67,0.67]
[1765580199742,21.28345415,132.69,132.66,66.17906371]
[1765580200946,21.28345415,132.69,132.67,0.67]
[1765580201850,21.28345415,132.69,132.66,66.17906371]
[1765580203037,21.28345415,132.69,132.67,0.67]
[1765580206651,21.28345415,132.69,132.66,65.50906371]
[1765580206855,21.28345415,132.69,132.66,62.87]
[1765580207758,0.7,132.68,132.66,62.87]
[1765580208249,0.7,132.68,132.66,0.67]
[1765580208452,21.28345415,132.69,132.66,0.67]
[1765580210459,10.8482825,132.68,132.66,0.67]
[1765580210951,21.28345415,132.69,132.66,0.67]
[1765580211128,42.28001915,132.69,132.66,0.67]
[1765580211325,0.67,132.68,132.66,0.67]
[1765580211529,8.20695884,132.68,132.66,0.67]
[1765580211748,7.53695884,132.68,132.66,0.67]
[1765580217153,8.20695884,132.68,132.66,0.67]
[1765580218257,7.53695884,132.68,132.65,80.58666712]
[1765580218458,8.20695884,132.68,132.66,0.66]
[1765580218655,7.53695884,132.68,132.66,0.66]
[1765580219855,7.53695884,132.68,132.64,100.63812754]
[1765580220064,0.67,132.67,132.65,0.66]
[1765580220367,30.8476139,132.68,132.65,0.66]
[1765580220870,30.8476139,132.68,132.65,5.83186794]
[1765580226067,23.31065506,132.68,132.65,13.3701457]
[1765580226368,23.31065506,132.68,132.66,5.83186794]
[1765580226579,0.67,132.68,132.66,5.83186794]
[1765580227366,0.67,132.68,132.66,0.66]
[1765580231884,8.20702735,132.68,132.66,0.66]
[1765580232059,0.67,132.68,132.66,0.66]
[1765580239879,0.67,132.68,132.65,69.73827776]
[1765580240080,0.67,132.68,132.65,70.39827776]
[1765580240582,0.67,132.68,132.66,0.67]
[1765580241583,0.67,132.68,132.65,69.73827776]
[1765580241771,0.67,132.68,132.66,0.67]
[1765580246890,43.8926609,132.69,132.66,0.67]
[1765580247679,43.2226609,132.69,132.66,0.67]
[1765580247886,0.67,132.68,132.66,0.67]
[1765580249689,43.2226609,132.69,132.66,0.67]
[1765580250473,43.8926609,132.69,132.66,0.67]
[1765580252396,0.67,132.68,132.66,0.67]
[1765580252882,43.8926609,132.69,132.66,0.67]
[1765580253391,43.2226609,132.69,132.66,0.67]
[1765580253570,0.67,132.68,132.66,0.67]
[1765580254691,0.67,132.68,132.65,70.45827776]
[1765580255786,0.67,132.68,132.66,0.72]
[1765580260874,23.30894653,132.68,132.66,0.72]
[1765580261118,0.67,132.68,132.66,0.72]
[1765580282009,23.30894653,132.68,132.66,0.72]
[1765580286218,0.67,132.68,132.66,0.72]
[1765580293212,0.67,132.68,132.67,1.2]
[1765580293706,8.20693096,132.68,132.67,1.2]
[1765580293917,8.20693096,132.68,132.65,62.2]
[1765580294102,0.71,132.67,132.65,62.86]
[1765580295517,20.58359806,132.69,132.66,0.66]
[1765580295690,16.50596041,132.7,132.66,3.97066109]
[1765580295895,39.14319866,132.7,132.67,22.63723825]
[1765580296118,39.14319866,132.7,132.67,23.29723825]
[1765580296301,0.71,132.69,132.67,23.29723825]
[1765580299198,39.14319866,132.7,132.67,23.29723825]
[1765580300027,0.71,132.69,132.67,23.29723825]
[1765580303126,0.71,132.69,132.68,1.2]
[1765580311325,30.17319866,132.7,132.68,1.88]
[1765580311514,22.63723825,132.7,132.68,1.88]
[1765580311918,23.30723825,132.7,132.68,1.88]
[1765580312121,13.7170912,132.72,132.69,0.68]
[1765580312429,23.30211497,132.73,132.69,26.62190836]
[1765580312821,23.30211497,132.73,132.7,0.68]
[1765580313008,23.30211497,132.73,132.7,23.31211497]
[1765580313832,23.30211497,132.73,132.7,0.68]
[1765580314330,30.83635505,132.73,132.7,0.68]
[1765580315729,30.83635505,132.73,132.7,23.31211497]
[1765580315930,30.83635505,132.73,132.71,0.68]
[1765580316114,22.63211497,132.73,132.71,0.68]
[1765580316315,0.67,132.75,132.71,3.98979339]
[1765580316525,30.8317287,132.75,132.72,22.62870073]
[1765580316725,30.8317287,132.75,132.72,23.30870073]
[1765580319133,22.62870073,132.75,132.73,0.68]
[1765580319435,28.83980884,132.76,132.73,0.68]
[1765580319436,29.50980884,132.76,132.73,23.306994]
[1765580319819,29.50980884,132.76,132.73,0.68]
[1765580320020,29.50980884,132.76,132.74,22.626994]
[1765580320316,13.0470912,132.76,132.74,22.626994]
[1765580320520,13.0470912,132.76,132.75,0.68]
[1765580321129,13.0470912,132.76,132.74,22.626994]
[1765580321328,13.7170912,132.76,132.74,23.306994]
[1765580322219,13.7170912,132.76,132.74,26.61678739]
[1765580322418,0.77,132.77,132.75,0.68]
[1765580322614,0.1,132.77,132.75,0.68]
[1765580322942,0.1,132.77,132.75,26.6133747]
[1765580323315,0.1,132.77,132.76,0.68]
[1765580323515,0.1,132.77,132.76,23.30358131]
[1765580324154,0.77,132.77,132.76,22.62358131]
[1765580324317,0.1,132.77,132.76,26.6133747]
[1765580325244,0.1,132.77,132.76,42.40576397]
[1765580328349,0.1,132.77,132.76,104.60576397]
[1765580329152,0.1,132.77,132.76,104.89008711]
[1765580330040,0.1,132.77,132.76,126.74712323]
[1765580330644,0.1,132.77,132.76,149.60872988]
[1765580331331,0.1,132.8,132.79,3.59411653]
[1765580331536,0.1,132.8,132.79,74.05411653]
[1765580331743,0.1,132.8,132.79,74.76411653]
[1765580332249,0.1,132.8,132.79,102.94537763]
[1765580333122,0.1,132.81,132.79,102.94537763]
[1765580333123,0.1,132.81,132.79,110.47606518]
[1765580333323,0.1,132.81,132.8,4.01979339]
[1765580333855,0.1,132.81,132.8,4.01099439]
[1765580334348,0.1,132.81,132.8,11.54111487]
[1765580334530,0.1,132.82,132.81,9.09426806]
[1765580334736,0.1,132.82,132.81,21.36526245]
[1765580335641,1e-08,132.82,132.81,24.37923976]
[1765580335849,0.1,132.83,132.81,24.37923976]
[1765580336049,1e-08,132.83,132.82,28.00748878]
[1765580336255,0.1,132.85,132.83,9.09426806]
[1765580336564,0.1,132.85,132.84,20.94398257]
[1765580336770,0.1,132.85,132.84,83.85398257]
[1765580336951,0.1,132.85,132.84,95.96177381]
[1765580339514,0.1,132.85,132.84,77.89750575]
[1765580339761,0.79,132.85,132.83,13.39612952]
[1765580340134,0.79,132.85,132.81,8.24]
[1765580340351,5.94612952,132.85,132.81,8.24]
[1765580340755,5.84612952,132.84,132.79,15.7705537]
[1765580340962,5.84612952,132.84,132.79,7.5305537]
[1765580341168,0.69,132.83,132.79,7.5305537]
[1765580341378,7.52955349,132.81,132.76,7.53220509]
[1765580341666,12.68568301,132.81,132.76,12.68833461]
[1765580341874,0.69,132.8,132.76,5.15612952]
[1765580342038,0.69,132.8,132.75,20.92892965]
[1765580342360,5.15612952,132.79,132.75,8.24]
[1765580342535,5.15612952,132.79,132.73,5.15612952]
[1765580342536,5.15612952,132.78,132.73,5.15612952]
[1765580342741,0.69,132.78,132.73,12.69002033]
[1765580342970,0.69,132.77,132.74,5.15612952]
[1765580344253,0.69,132.77,132.75,5.15612952]
[1765580344455,0.69,132.77,132.76,5.15612952]
[1765580345273,0.69,132.77,132.75,5.15612952]
[1765580345451,0.69,132.77,132.75,12.68889316]
[1765580346472,7.53031022,132.8,132.76,5.15612952]
[1765580346671,0.69,132.78,132.76,5.15612952]
[1765580348377,0.69,132.78,132.77,0.5]
[1765580350266,8.24276364,132.81,132.77,6.36612952]
[1765580350456,26.445679,132.85,132.78,8.52432314]
[1765580350660,0.69,132.81,132.78,8.52432314]
[1765580350870,0.69,132.81,132.78,8.24]